[Event "Fagernes GM Open Autumn 2024"]
[Site "Fagernes"]
[Date "2024.10.12"]
[Round "8.26"]
[White "Kittilsen, Sigurd"]
[Black "Lien, Sebastian"]
[Result "1-0"]
[ECO "B15"]
[WhiteElo "1981"]
[BlackElo "1911"]
[Annotator "RC"]
[PlyCount "108"]
[EventDate "2024.10.03"]
[EventType "swiss"]
[EventCountry "NOR"]
[SourceTitle "playchess.com"]
[Source "ChessBase"]
[SourceQuality "1"]
[TimeControl "40/6000:2400+30"]

1. e4 {[%emt 0:00:00]} c6 {[%emt 0:00:00]} 2. d4 {[%emt 0:01:34]} d5 {[%emt 0:00:52]} 3. Nd2 {[%emt 0:00:00]} dxe4 {[%emt 0:00:00]} 4. Nxe4 {[%emt 0:00:00]} Nf6 {[%emt 0:00:00]} 5. Nxf6+ {[%emt 0:00:00]} exf6 {[%emt 0:00:00]} 6. c3 {[%emt 0:00:00]} Bd6 {[%emt 0:00:00]} 7. Bd3 {[%emt 0:00:00]} O-O {[%emt 0:00:00]} 8. Qc2 {[%emt 0:00:00]} Re8+ {[%emt 0:00:00]} 9. Ne2 {[%emt 0:00:00]} h5 {[%emt 0:00:00]} 10. Be3 {[%emt 0:00:00]} Nd7 {[%emt 0:00:00]} 11. O-O-O {[%emt 0:00:00]} Nf8 {[%emt 0:00:00]} 12. c4 {[%emt 0:00:00]} Be6 {[%emt 0:00:05]} 13. a3 {[%emt 0:00:00]} Rc8 {[%emt 0:00:00]} 14. Nc3 {[%emt 0:00:00]} Ng6 {[%emt 0:11:33]} 15. g3 {[%emt 0:07:48]} Ne7 {[%emt 0:11:10]} 16. Ne4 {[%emt 0:17:59]} b5 {[%emt 0:03:47]} 17. c5 {[%emt 0:07:39]} Bc7 {[%emt 0:00:00]} 18. Qe2 {[%emt 0:08:09]} Bg4 {[%emt 0:03:04]} 19. f3 {[%emt 0:00:00]} Bf5 {[%emt 0:05:25]} 20. Qf2 {[%emt 0:07:37]} Nd5 {[%emt 0:13:34]} 21. Rhe1 {[%emt 0:16:47]} Qd7 {[%emt 0:05:57]} 22. Bd2 {[%emt 0:09:35]} a5 {[%emt 0:01:19]} 23. g4 {[%emt 0:05:17]} hxg4 {[%emt 0:00:18]} 24. fxg4 {[%emt 0:00:00]} Bg6 {[%emt 0:06:12]} 25. h4 {[%emt 0:00:34]} b4 {[%emt 0:07:02]} 26. a4 {[%emt 0:01:01]} b3 {[%emt 0:01:22]} 27. h5 {[%emt 0:02:29]} Bxe4 {[%emt 0:12:48]} 28. Bxe4 {[%emt 0:00:20]} Qxg4 {[%emt 0:02:07]} 29. Bf5 {[%emt 0:02:10]} Qg3 {[%emt 0:00:00]} 30. Qxg3 {[%emt 0:00:00]} Bxg3 {[%emt 0:00:00]} 31. Rg1 {[%emt 0:00:57]} Bf4 {[%emt 0:00:00]} 32. Bxc8 {[%emt 0:01:10]} Rxc8 {[%emt 0:00:00]} 33. Bxf4 {[%emt 0:01:00]} Nxf4 {[%emt 0:00:00]} 34. Rh1 {[%emt 0:03:43]} Rb8 {[%emt 0:00:00]} 35. Rh4 {[%emt 0:00:55]} Nd5 {[%emt 0:00:59]} 36. Rg1 {[%emt 0:00:00]} Ne7 {[%emt 0:05:19]} 37. Rhg4 {[%emt 0:00:20]} g6 {[%emt 0:00:09]} 38. Re4 {[%emt 0:00:44]} Rb7 {[%emt 0:00:00]} 39. Rge1 {[%emt 0:00:56]} Nf5 {[%emt 0:00:00]} 40. hxg6 {[%emt 0:00:33]} fxg6 {[%emt 0:00:00]} 41. Re6 {[%emt 0:01:42]} Kf7 {[%emt 0:05:32]} 42. Rxc6 {[%emt 0:00:57]} Nxd4 {[%emt 0:00:13]} 43. Rd6 {[%emt 0:05:15]} Nf5 {[%emt 0:02:36]} 44. Rb6 {[%emt 0:03:01]} Rc7 {[%emt 0:00:53]} 45. Kd2 {[%emt 0:05:37]} Rxc5 {[%emt 0:01:02]} 46. Rb7+ {[%emt 0:00:08]} Kf8 {[%emt 0:00:16]} 47. Re6 {[%emt 0:04:19]} Rd5+ {[%emt 0:03:12]} 48. Kc3 {[%emt 0:00:17]} Rc5+ {[%emt 0:00:20]} 49. Kd3 {[%emt 0:00:42]} Rd5+ {[%emt 0:00:16]} 50. Kc4 {[%emt 0:03:43]} Rd6 {[%emt 0:04:45]} 51. Rb8+ {[%emt 0:00:47]} Kf7 {[%emt 0:00:03]} 52. Rxd6 {[%emt 0:00:22]} Nxd6+ {[%emt 0:00:08]} 53. Kd5 {[%emt 0:00:23]} Nf5 {[%emt 0:01:29]} 54. Rb7+ {[%emt 0:00:34]} Ne7+ {[%emt 0:00:05]} 1-0

[Event "Fagernes GM Open Autumn 2024"]
[Site "Fagernes"]
[Date "2024.10.12"]
[Round "8.27"]
[White "Stromhaug, Kristoffer Wang"]
[Black "Sieber, Fiona"]
[Result "1/2-1/2"]
[ECO "B69"]
[WhiteElo "1960"]
[BlackElo "2264"]
[Annotator "RC"]
[PlyCount "94"]
[EventDate "2024.10.03"]
[EventType "swiss"]
[EventCountry "NOR"]
[SourceTitle "playchess.com"]
[Source "ChessBase"]
[SourceQuality "1"]
[TimeControl "40/6000:2400+30"]

1. e4 {[%emt 0:00:00]} c5 {[%emt 0:00:00]} 2. Nf3 {[%emt 0:00:00]} d6 {[%emt 0:00:00]} 3. d4 {[%emt 0:00:00]} cxd4 {[%emt 0:00:00]} 4. Nxd4 {[%emt 0:00:00]} Nf6 {[%emt 0:00:00]} 5. Nc3 {[%emt 0:00:00]} Nc6 {[%emt 0:00:00]} 6. Bg5 {[%emt 0:00:00]} e6 {[%emt 0:00:00]} 7. Qd2 {[%emt 0:01:01]} Be7 {[%emt 0:00:00]} 8. O-O-O {[%emt 0:02:03]} a6 {[%emt 0:00:00]} 9. f4 {[%emt 0:00:02]} Bd7 {[%emt 0:00:00]} 10. Nf3 {[%emt 0:00:11]} b5 {[%emt 0:00:00]} 11. Bxf6 {[%emt 0:00:23]} gxf6 {[%emt 0:00:00]} 12. f5 {[%emt 0:00:40]} Qb6 {[%emt 0:00:00]} 13. Kb1 {[%emt 0:03:21]} O-O-O {[%emt 0:00:00]} 14. g3 {[%emt 0:00:26]} Kb8 {[%emt 0:00:00]} 15. fxe6 {[%emt 0:00:34]} fxe6 {[%emt 0:00:00]} 16. Bh3 {[%emt 0:00:00]} Na5 {[%emt 0:00:00]} 17. Nd4 {[%emt 0:06:32]} b4 {[%emt 0:01:30]} 18. Nce2 {[%emt 0:01:06]} e5 {[%emt 0:00:42]} 19. Bxd7 {[%emt 0:13:25]} Rxd7 {[%emt 0:00:00]} 20. Nf5 {[%emt 0:00:00]} Nc4 {[%emt 0:04:27]} 21. Qd3 {[%emt 0:02:03]} Rc8 {[%emt 0:00:27]} 22. Nc1 {[%emt 0:02:13]} a5 {[%emt 0:27:15]} 23. Nb3 {[%emt 0:16:21]} a4 {[%emt 0:05:56]} 24. Nd2 {[%emt 0:01:50]} Na3+ {[%emt 0:00:03]} 25. bxa3 {[%emt 0:01:08]} bxa3+ {[%emt 0:00:00]} 26. Nb3 {[%emt 0:00:00]} axb3 {[%emt 0:02:14]} 27. axb3 {[%emt 0:08:44]} Bf8 {[%emt 0:09:35]} 28. c4 {[%emt 0:05:07]} Rb7 {[%emt 0:02:28]} 29. Ka2 {[%emt 0:05:27]} Rxc4 {[%emt 0:00:44]} 30. Rd2 {[%emt 0:04:57]} Rxe4 {[%emt 0:03:11]} 31. Rc1 {[%emt 0:00:21]} Rb4 {[%emt 0:00:59]} 32. Rc3 {[%emt 0:04:44]} e4 {[%emt 0:15:58]} 33. Qd5 {[%emt 0:00:54]} Qb5 {[%emt 0:10:15]} 34. Nxd6 {[%emt 0:04:55]} Qxd5 {[%emt 0:01:08]} 35. Rxd5 {[%emt 0:00:00]} Rc7 {[%emt 0:05:28]} 36. Nxe4 {[%emt 0:04:00]} Rxe4 {[%emt 0:04:02]} 37. Rd8+ {[%emt 0:00:00]} Kb7 {[%emt 0:00:00]} 38. Rxc7+ {[%emt 0:00:00]} Kxc7 {[%emt 0:00:00]} 39. Rxf8 {[%emt 0:00:00]} Re2+ {[%emt 0:00:00]} 40. Kxa3 {[%emt 0:00:00]} Rxh2 {[%emt 0:00:00]} 41. Rxf6 {[%emt 0:39:13]} Rh5 {[%emt 0:42:20]} 42. Rf7+ {[%emt 0:02:44]} Kb6 {[%emt 0:01:23]} 43. Rg7 {[%emt 0:01:09]} Kb5 {[%emt 0:00:00]} 44. g4 {[%emt 0:00:00]} Rh4 {[%emt 0:00:00]} 45. Rg5+ {[%emt 0:00:00]} Kb6 {[%emt 0:00:00]} 46. Rg7 {[%emt 0:00:00]} Kb5 {[%emt 0:00:00]} 47. Rg5+ {[%emt 0:00:00]} Kb6 {[%emt 0:00:00]} 1/2-1/2

[Event "Fagernes GM Open Autumn 2024"]
[Site "Fagernes"]
[Date "2024.10.12"]
[Round "8.28"]
[White "Juodziukynas, Aidas"]
[Black "Bjorkan, Olav"]
[Result "0-1"]
[ECO "E04"]
[WhiteElo "1917"]
[BlackElo "2022"]
[Annotator "RC"]
[PlyCount "66"]
[EventDate "2024.10.03"]
[EventType "swiss"]
[EventCountry "NOR"]
[SourceTitle "playchess.com"]
[Source "ChessBase"]
[SourceQuality "1"]
[TimeControl "40/6000:2400+30"]

1. d4 {[%emt 0:00:00]} Nf6 {[%emt 0:00:00]} 2. Nf3 {[%emt 0:00:00]} e6 {[%emt 0:00:00]} 3. c4 {[%emt 0:00:00]} d5 {[%emt 0:00:00]} 4. g3 {[%emt 0:00:00]} dxc4 {[%emt 0:00:00]} 5. Bg2 {[%emt 0:00:00]} Nc6 {[%emt 0:00:00]} 6. O-O {[%emt 0:00:00]} Rb8 {[%emt 0:00:00]} 7. a4 {[%emt 0:00:36]} b6 {[%emt 0:00:00]} 8. Na3 {[%emt 0:17:45]} Bxa3 {[%emt 0:00:00]} 9. Rxa3 {[%emt 0:00:00]} O-O {[%emt 0:02:06]} 10. Rc3 {[%emt 0:03:05]} Ba6 {[%emt 0:04:44]} 11. Bg5 {[%emt 0:00:31]} h6 {[%emt 0:16:16]} 12. Bxf6 {[%emt 0:00:21]} Qxf6 {[%emt 0:00:00]} 13. b3 {[%emt 0:02:46]} Rbd8 {[%emt 0:01:27]} 14. e3 {[%emt 0:00:42]} e5 {[%emt 0:02:09]} 15. d5 {[%emt 0:00:18]} e4 {[%emt 0:00:10]} 16. Nd4 {[%emt 0:00:00]} Nxd4 {[%emt 0:00:00]} 17. Qxd4 {[%emt 0:00:12]} Qxd4 {[%emt 0:00:00]} 18. exd4 {[%emt 0:00:00]} cxb3 {[%emt 0:00:07]} 19. Rd1 {[%emt 0:00:00]} Bd3 {[%emt 0:05:56]} 20. Rdxd3 {[%emt 0:00:59]} exd3 {[%emt 0:00:00]} 21. Rxd3 {[%emt 0:00:10]} Rfe8 {[%emt 0:01:15]} 22. Kf1 {[%emt 0:00:00]} Re7 {[%emt 0:02:12]} 23. Rxb3 {[%emt 0:00:00]} Rde8 {[%emt 0:00:00]} 24. Bf3 {[%emt 0:00:00]} Re1+ {[%emt 0:00:00]} 25. Kg2 {[%emt 0:00:00]} Ra1 {[%emt 0:00:00]} 26. Rc3 {[%emt 0:00:00]} Re7 {[%emt 0:00:00]} 27. Rc4 {[%emt 0:00:00]} g6 {[%emt 0:00:00]} 28. h4 {[%emt 0:00:56]} h5 {[%emt 0:00:00]} 29. Kh2 {[%emt 0:00:14]} Kg7 {[%emt 0:00:11]} 30. Kg2 {[%emt 0:00:00]} Rd7 {[%emt 0:05:04]} 31. Kh2 {[%emt 0:00:00]} a6 {[%emt 0:01:15]} 32. Kg2 {[%emt 0:00:00]} Rb1 {[%emt 0:00:20]} 33. Kh2 {[%emt 0:00:00]} a5 {[%emt 0:00:29]} 0-1

[Event "Fagernes GM Open Autumn 2024"]
[Site "Fagernes"]
[Date "2024.10.12"]
[Round "8.29"]
[White "Rustan, Elias Buschmann"]
[Black "Hetland, Even"]
[Result "0-1"]
[ECO "B99"]
[WhiteElo "1941"]
[BlackElo "1970"]
[Annotator "RC"]
[PlyCount "84"]
[EventDate "2024.10.03"]
[EventType "swiss"]
[EventCountry "NOR"]
[SourceTitle "playchess.com"]
[Source "ChessBase"]
[SourceQuality "1"]
[TimeControl "40/6000:2400+30"]

1. e4 {[%emt 0:00:00]} c5 {[%emt 0:00:00]} 2. Nf3 {[%emt 0:00:00]} d6 {[%emt 0:00:00]} 3. d4 {[%emt 0:00:00]} cxd4 {[%emt 0:00:00]} 4. Nxd4 {[%emt 0:00:00]} Nf6 {[%emt 0:00:00]} 5. Nc3 {[%emt 0:00:00]} a6 {[%emt 0:00:00]} 6. Bg5 {[%emt 0:00:00]} e6 {[%emt 0:00:00]} 7. f4 {[%emt 0:00:00]} Be7 {[%emt 0:00:00]} 8. Qf3 {[%emt 0:00:00]} Qc7 {[%emt 0:00:00]} 9. O-O-O {[%emt 0:00:00]} Nbd7 {[%emt 0:00:00]} 10. g4 {[%emt 0:00:00]} b5 {[%emt 0:00:00]} 11. Bxf6 {[%emt 0:00:00]} Nxf6 {[%emt 0:00:00]} 12. g5 {[%emt 0:00:00]} Nd7 {[%emt 0:00:00]} 13. f5 {[%emt 0:00:00]} O-O {[%emt 0:00:00]} 14. Rg1 {[%emt 0:00:00]} b4 {[%emt 0:00:00]} 15. Nce2 {[%emt 0:00:00]} e5 {[%emt 0:00:00]} 16. f6 {[%emt 0:00:00]} exd4 {[%emt 0:00:00]} 17. fxe7 {[%emt 0:00:00]} Re8 {[%emt 0:00:00]} 18. Nxd4 {[%emt 0:00:00]} Ne5 {[%emt 0:00:00]} 19. Qf4 {[%emt 0:00:00]} Qc5 {[%emt 0:00:00]} 20. h4 {[%emt 0:14:05]} Rxe7 {[%emt 0:11:09]} 21. h5 {[%emt 0:12:17]} a5 {[%emt 0:10:14]} 22. Rg3 {[%emt 0:18:12]} a4 {[%emt 0:29:07]} 23. h6 {[%emt 0:20:31]} Be6 {[%emt 0:17:41]} 24. hxg7 {[%emt 0:10:40]} Rc7 {[%emt 0:00:00]} 25. g6 {[%emt 0:04:43]} Nxg6 {[%emt 0:11:50]} 26. Rxg6 {[%emt 0:01:46]} hxg6 {[%emt 0:00:00]} 27. Qh6 {[%emt 0:00:02]} Qh5 {[%emt 0:00:10]} 28. Qf4 {[%emt 0:01:47]} b3 {[%emt 0:04:14]} 29. a3 {[%emt 0:00:22]} bxc2 {[%emt 0:01:16]} 30. Rd2 {[%emt 0:00:43]} Qe5 {[%emt 0:00:00]} 31. Qh4 {[%emt 0:03:20]} Qxg7 {[%emt 0:00:00]} 32. Bb5 {[%emt 0:02:49]} Bb3 {[%emt 0:04:51]} 33. Nc6 {[%emt 0:01:17]} Qh8 {[%emt 0:05:10]} 34. Qe1 {[%emt 0:01:36]} Qh6 {[%emt 0:00:07]} 35. e5 {[%emt 0:00:18]} dxe5 {[%emt 0:00:00]} 36. Qe4 {[%emt 0:00:17]} Rxc6 {[%emt 0:00:41]} 37. Bxc6 {[%emt 0:00:09]} Rd8 {[%emt 0:00:00]} 38. Bd7 {[%emt 0:01:33]} Qg5 {[%emt 0:00:07]} 39. Qh1 {[%emt 0:00:23]} Qxd2+ {[%emt 0:00:44]} 40. Kxd2 {[%emt 0:00:00]} Rxd7+ {[%emt 0:00:00]} 41. Kc3 {[%emt 0:40:27]} c1=Q+ {[%emt 0:40:24]} 42. Qxc1 {[%emt 0:00:29]} Rc7+ {[%emt 0:00:02]} 0-1

[Event "Fagernes GM Open Autumn 2024"]
[Site "Fagernes"]
[Date "2024.10.13"]
[Round "9.1"]
[White "Kvaloy, Aksel Bu"]
[Black "Willow, Jonah B"]
[Result "1/2-1/2"]
[ECO "D79"]
[WhiteElo "2484"]
[BlackElo "2420"]
[Annotator "TA"]
[PlyCount "71"]
[EventDate "2024.10.03"]
[EventType "swiss"]
[EventCountry "NOR"]
[SourceTitle "playchess.com"]
[Source "ChessBase"]
[SourceQuality "1"]
[TimeControl "40/6000:2400+30"]

{[%evp 18,71,12,14,8,5,16,0,9,0,14,9,7,28,10,10,15,24,10,8,25,7,11,14,13,5,12,6,50,0,0,0,0,0,33,0,0,-6,0,-9,-6,-22,0,-16,0,0,0,0,0,0,0,0,0,0,0,0]} 1. d4 {[%emt 0:00:29]} Nf6 {[%emt 0:01:34]} 2. c4 {[%emt 0:00:00]} g6 {[%emt 0:00:00]} 3. Nf3 {[%emt 0:00:00]} Bg7 {[%emt 0:00:00]} 4. g3 {[%emt 0:00:00]} c6 {[%emt 0:01:27]} 5. Bg2 {[%emt 0:00:00]} d5 {[%emt 0:00:18]} 6. cxd5 {[%emt 0:00:00]} cxd5 {[%emt 0:00:00]} 7. O-O {[%emt 0:00:00]} O-O {[%emt 0:00:00]} 8. Nc3 {[%emt 0:00:00]} Nc6 {[%emt 0:00:00]} 9. Ne5 {[%emt 0:00:00]} Bf5 {[%emt 0:00:00]} 10. Bf4 {[%emt 0:17:42]} Rc8 {[%emt 0:08:47][%cal Ba8c8,Bc8c6,Bc6b6][%mdl 32]} 11. Nxc6 {[%emt 0:00:44]} Rxc6 {[%emt 0:00:00]} 12. Be5 {[%emt 0:06:27]} Ne4 {[%emt 0:16:55]} 13. Nxe4 {[%emt 0:01:44]} Bxe4 {[%emt 0:04:04]} 14. Bxg7 {[%emt 0:00:10]} Kxg7 {[%emt 0:17:23]} 15. Bxe4 {[%emt 0:00:10]} dxe4 {[%emt 0:00:00]} 16. d5 {[%emt 0:01:00]} Rb6 {[%emt 0:08:53]} 17. Qd4+ {[%emt 0:00:29]} Kg8 {[%emt 0:01:26]} 18. Rfd1 {[%emt 0:04:24][%cal Oa1c1]} Qd6 {[%emt 0:00:50]} 19. b3 {[%emt 0:01:24]} f5 $1 {[%emt 0:00:09]} 20. Rac1 {[%emt 0:00:09]} Rd8 {[%emt 0:07:53]} 21. Rc5 {[%emt 0:03:18]} Kf7 {[%emt 0:06:05]} 22. Qc4 {[%emt 0:05:50]} h5 {[%emt 0:00:41][%cal Bh7h5,Bh5h4,Bh4h3][%mdl 32]} 23. e3 {[%emt 0:01:53]} ({White should try} 23. Kg2 $14) 23... h4 $11 {[%emt 0:01:34]} 24. b4 {[%emt 0:12:29]} h3 {[%emt 0:04:58]} 25. Rd4 {[%emt 0:05:23]} Kg7 {[%emt 0:02:45]} 26. Kf1 {[%emt 0:04:56]} (26. a4 $5) 26... Ra6 {[%emt 0:04:39] The position is equal.} 27. Qb3 {[%emt 0:04:02]} Rb6 {[%emt 0:01:48]} 28. Qc3 {[%emt 0:00:56]} Qf6 {[%emt 0:00:41]} 29. Rc7 {[%emt 0:00:53]} Kh6 {[%emt 0:03:40][%cal Oa7a5]} 30. Qc4 {[%emt 0:20:33]} Rbd6 {[%emt 0:00:20]} 31. Rxb7 {[%emt 0:02:24][%cal Ob7c7]} Rxd5 $1 {[%emt 0:00:00]} 32. Rxd5 {[%emt 0:00:36]} Qa1+ {[%emt 0:00:00]} 33. Ke2 {[%emt 0:00:00]} Qb2+ {[%emt 0:00:00]} 34. Ke1 {[%emt 0:00:00]} Qb1+ {[%emt 0:00:00]} 35. Ke2 {[%emt 0:00:00]} Qb2+ {[%emt 0:00:00]} 36. Ke1 {[%emt 0:00:00] An even fight not without its subleties.   Weighted Error Value: White=0.08 (flawless) /Black=0.06 (flawless) .  Mistake:       	White=1     	---        Inaccurate:     	White=1     	Black=2      OK:         	White=7     	Black=8      Best:        	White=1     	Black=4      Strong:       	---       	Black=2} 1/2-1/2

[Event "Fagernes GM Open Autumn 2024"]
[Site "Fagernes"]
[Date "2024.10.13"]
[Round "9.2"]
[White "Das, Sayantan"]
[Black "Jumabayev, Rinat"]
[Result "0-1"]
[ECO "B43"]
[WhiteElo "2471"]
[BlackElo "2577"]
[Annotator "TA"]
[PlyCount "129"]
[EventDate "2024.10.03"]
[EventType "swiss"]
[EventCountry "NOR"]
[SourceTitle "playchess.com"]
[Source "ChessBase"]
[SourceQuality "1"]
[TimeControl "40/6000:2400+30"]

{[%evp 15,129,37,42,20,23,0,0,0,0,-12,0,-17,-11,0,0,-7,-8,-33,-12,-28,-6,-6,-11,-18,0,0,0,0,0,0,0,0,0,0,0,-14,27,27,92,85,68,73,120,106,112,86,74,77,156,29,42,0,126,126,172,172,234,214,325,133,174,-46,-50,-42,-43,-45,-48,-124,-133,-208,-194,-227,-210,-237,-223,-204,-195,-562,-525,-520,-576,-627,-594,-631,-587,-606,-518,-476,-720,-860,-832,-646,-766,-697,-646,-645,-652,-606,-607,-468,-80,-84,-80,-112,-43,-558,-135,-135,-135,-6390,-5955,-29973,-29975,-29979,-29979,-29944]} 1. e4 {[%emt 0:00:47]} c5 {[%emt 0:00:59]} 2. Nf3 {[%emt 0:00:00]} e6 {[%emt 0:00:00]} 3. d4 {[%emt 0:00:00]} cxd4 {[%emt 0:00:00]} 4. Nxd4 {[%emt 0:00:00]} a6 {[%emt 0:00:00]} 5. Nc3 {[%emt 0:00:00]} Qc7 {[%emt 0:00:00]} 6. Bd3 {[%emt 0:00:02]} Nf6 {[%emt 0:00:00]} 7. O-O {[%emt 0:00:27]} Bc5 {[%emt 0:00:00]} 8. Nb3 {[%emt 0:02:00]} Ba7 {[%emt 0:00:00]} 9. Qe2 {[%emt 0:02:58]} d6 {[%emt 0:15:41]} 10. Be3 {[%emt 0:01:59]} Bxe3 {[%emt 0:03:13]} 11. Qxe3 {[%emt 0:00:00] The position is equal.} Nc6 {[%emt 0:00:00]} 12. Kh1 {[%emt 0:03:59]} b5 {[%emt 0:07:39]} 13. f4 {[%emt 0:12:35]} O-O {[%emt 0:06:36]} 14. a4 $1 {[%emt 0:10:02]} b4 {[%emt 0:00:59]} 15. Nb1 {[%emt 0:00:22]} e5 {[%emt 0:05:43]} 16. f5 {[%emt 0:03:13]} Bb7 {[%emt 0:06:00]} 17. N1d2 {[%emt 0:04:10]} Ne7 {[%emt 0:12:07]} 18. a5 {[%emt 0:04:25]} d5 {[%emt 0:04:02]} 19. Rae1 {[%emt 0:10:51]} Rfe8 {[%emt 0:06:16]} 20. Qc5 {[%emt 0:07:10]} Qxc5 {[%emt 0:05:14]} 21. Nxc5 {[%emt 0:00:00]} dxe4 $1 {[%emt 0:00:07]} 22. Ndxe4 {[%emt 0:03:36]} Bxe4 {[%emt 0:01:10]} 23. Bxe4 {[%emt 0:06:08]} Nxe4 {[%emt 0:06:17]} 24. Rxe4 {[%emt 0:00:00]} Nc6 {[%emt 0:02:42]} 25. f6 {[%emt 0:00:56]} g6 {[%emt 0:01:35]} (25... Red8 {seems wilder.} 26. fxg7 Rd5 27. Nb3 Rb8) 26. Rd1 {[%emt 0:05:10]} Red8 {[%emt 0:04:01]} (26... h6 $11) 27. Rxd8+ $1 $16 {[%emt 0:02:58]} Rxd8 {[%emt 0:00:00][%mdl 4096] Endgame. KRN-KRN} 28. h3 {[%emt 0:00:00]} Ra8 {[%emt 0:08:03]} (28... b3 $142 29. cxb3 (29. Nxb3 Rd5 $16) 29... Rd5) 29. Rc4 {[%emt 0:02:24]} h6 {[%emt 0:01:03][%cal Og6g5]} (29... Rb8 $2 30. Nxa6 Nxa5 31. Rc5 $18 (31. Rxb4 Re8 $18)) 30. Nd7 {[%emt 0:02:39]} Nxa5 {[%emt 0:00:00]} 31. Rxb4 {[%emt 0:01:15]} Re8 {[%emt 0:00:00]} (31... Nc6 $142 32. Rb6 Rd8) 32. Nc5 {[%emt 0:03:11]} (32. Rb8 $16 Rxb8 33. Nxb8) 32... Rc8 $11 {[%emt 0:00:00]} 33. Nd7 {[%emt 0:01:16]} Nc4 {[%emt 0:00:00]} (33... Re8 $11) 34. b3 $16 {[%emt 0:00:23]} Ne3 {[%emt 0:00:00]} (34... Nd2 $16 {keeps fighting.} 35. Nxe5 Re8) 35. c4 $1 $18 {[%emt 0:00:04]} (35. Nxe5 $6 Re8 36. Ng4 Nxg4 37. Rxg4 (37. hxg4 Re6 $11) 37... Re6 $11) 35... Nc2 {[%emt 0:00:00]} (35... a5 $142 36. Rb8 Rxb8 37. Nxb8 e4) 36. Rb7 {[%emt 0:00:53]} e4 {[%emt 0:00:00]} (36... Re8 $142 37. Rb8 Rxb8 38. Nxb8 Kf8 39. Nd7+ (39. Nxa6 Ke8 $18) 39... Ke8 40. Nxe5 Nd4) 37. Nb6 {[%emt 0:01:40]} (37. Ne5 $18 {and the rest is easy.} Rf8 38. Kg1) 37... Rc6 {[%emt 0:00:00]} 38. Nd5 {[%emt 0:00:00]} (38. Rb8+ $1 $18 Kh7 39. Nd7) 38... Re6 $1 $15 {[%emt 0:00:00]} 39. Rb8+ {[%emt 0:00:00]} Kh7 {[%emt 0:00:00] ...e3 is the strong threat.} 40. Rf8 {[%emt 0:00:00]} e3 $1 {[%emt 0:00:00]} 41. Rxf7+ {[%emt 0:09:16]} ({White should play} 41. Nxe3 $1 $15 Rxe3 (41... Nxe3 42. Rxf7+ Kg8 43. Rg7+ Kf8 44. Rxg6 $11) 42. Rxf7+ Kg8 43. Rg7+ Kf8 44. Rxg6) 41... Kg8 $17 {[%emt 0:00:43]} 42. Re7 {[%emt 0:03:08]} (42. Rg7+ $17 {is a better defense.} Kf8 43. Nc3 (43. Rxg6 $2 e2 $19) (43. Re7 $2 Rxe7 44. fxe7+ Kf7 $19)) 42... Rxe7 $19 {[%emt 0:00:51]} 43. fxe7 {[%emt 0:00:02] KN-KN} (43. Nxe7+ Kf7 44. Nc6 Kxf6) 43... Kf7 {[%emt 0:00:07] Strongly threatening ...e2.} 44. Nf4 {[%emt 0:00:08]} g5 {[%emt 0:28:15]} 45. Ne2 {[%emt 0:03:11]} a5 {[%emt 0:00:03][%cal Oc2a1] Hoping for ...Na1!} ({Much less strong is} 45... Kxe7 46. g3 $17) 46. g4 $2 {[%emt 0:12:57]} (46. g3) 46... Kxe7 {[%emt 0:05:27]} 47. Kg2 {[%emt 0:00:24]} Kd6 {[%emt 0:01:19]} 48. Kf3 {[%emt 0:03:57]} Ke5 {[%emt 0:00:39]} 49. c5 {[%emt 0:02:51]} Kd5 {[%emt 0:00:10]} 50. c6 {[%emt 0:00:28]} Kxc6 {[%emt 0:00:04]} 51. Ke4 {[%emt 0:00:07]} Kc5 {[%emt 0:03:36] White must now prevent ...Kb4.} 52. Kd3 {[%emt 0:00:29]} Na1 $1 {[%emt 0:00:25]} 53. Nd4 {[%emt 0:06:02] [#]} e2 $1 {[%emt 0:00:38][%mdl 512]} 54. Nxe2 {[%emt 0:00:10]} Kb4 {[%emt 0:02:03]} 55. Nd4 {[%emt 0:02:51]} Nxb3 {[%emt 0:00:02]} 56. Nc2+ {[%emt 0:00:13]} Kc5 $1 {[%emt 0:00:38]} 57. Kc3 {[%emt 0:02:06]} a4 {[%emt 0:00:30]} (57... Nc1 $1 $19 {[%cal Rc1e2]} 58. Kd2 Na2) 58. Ne3 $17 {[%emt 0:01:09]} Nd4 $1 {[%emt 0:00:28] And now ...a3 would win.} 59. Kb2 {[%emt 0:00:05]} Kd6 {[%emt 0:03:51]} (59... Nb5 $1 $17 60. Nf5 a3+ 61. Ka2 Kb4) 60. Kc3 {[%emt 0:01:48][%mdl 8192] [#]} (60. Ka3 $15) 60... Ne2+ $2 {[%emt 0:00:32]} (60... Nc6 $1 $19 61. Nf5+ Ke6) 61. Kb4 {[%emt 0:00:38]} Ke5 {[%emt 0:00:13] Wards off Nf5. aiming for ...Nf4.} 62. Kxa4 $2 {[%emt 0:01:17][%mdl 8192] White does not recover from this.} (62. Nc4+ $17 Kf6 (62... Kd4 63. Nd6 $15) 63. Ne3) 62... Ng1 {[%emt 0:00:49]} 63. Nf5 {[%emt 0:00:34] [#]} h5 $1 {[%emt 0:00:01]} ({Worse is} 63... Nxh3 64. Nxh6 Nf2 65. Nf7+ Ke6 66. Nd8+ Ke5 67. Kb3 $11) 64. Nh6 {[%emt 0:00:31]} h4 {[%emt 0:00:10]} ({Inferior is} 64... Nxh3 65. gxh5 Nf4 66. Ng4+ Kf5 67. Nh2 $11) 65. Nf7+ {[%emt 0:00:07] Weighted Error Value: White=0.56/Black=0.45.  Loses game:     	White=2     	---        Missed win:     	White=2     	Black=1      Mistake:       	White=4     	Black=8      Inaccurate:     	White=2     	Black=2      OK:         	White=15    	Black=15     Best:        	White=3     	Black=3      Strong:       	White=3     	Black=5} 0-1